Workbook

Sheet 2024 (hidden)
A1: 中泰+水映豪廷+乐城5.1-5.31实收
A2: 实体门店 | B2: 商圈门店 | C2: 商圈经理 | D2: 门店数 | E2: 总人数 | F2: 总业绩 | G2: 租房套数 | H2: 租房业绩 | I2: 售房套数 | J2: 售房业绩 | K2: 新房套数 | L2: 新房业绩 | N2: 1-5号 | O2: 6-10号 | P2: 11-15号 | Q2: 16-20号 | R2: 20-25号 | S2: 26-31号 | T2: 合计
A3: 中泰峰境店 | B3: 中泰峰境A店 | C3: 黄佑文 | D3: 1 | E3: 5 | F3: =H3+J3+L3 -> 88637 | G3: =2.5+3.5+2.5+2+3 -> 13.5 | H3: =3425+5015+2800+2325+3100 -> 16665 | I3: =1+1+1+2+1 -> 6 | J3: =10000+15560+16500+11000+6800+12112 -> 71972 | K3: 0 | L3: 0 | N3: =10000+1250+1600+1150/2 -> 13425 | O3: =1435+1700+1330+1100/2 -> 5015 | P3: =15560 -> 15560 | Q3: =1500/2+16500+850+1200 -> 19300 | R3: =1700/2+800+1350/2+6800+11000 -> 20125 | S3: =12112+1100+900+1100 -> 15212 | T3: =SUM(N3:S3) -> 88637
B4: 中泰峰境C店 | C4: 邹凤娇 | D4: 1 | E4: 5 | F4: =H4+J4+L4 -> 75160 | G4: =2.5+4+2.5+1+1 -> 11 | H4: =3825+7430+3465+1470+5730 -> 21920 | I4: =2+1+1+1 -> 5 | J4: =10900+8000+17000+9000+8340 -> 53240 | K4: 0 | L4: 0 | N4: =2100+1150+1150/2 -> 3825 | O4: =10900+2100+2000+1700+1630+8000 -> 26330 | P4: 0 | Q4: =1500/2+2100/2+17000+1000/2+1430/2+900/2 -> 20465 | R4: =9000+1470 -> 10470 | S4: =5730+8340 -> 14070 | T4: =SUM(N4:S4) -> 75160
A5: 水映豪廷A店 | B5: 水映豪廷A店 | C5: 谢应红 | D5: 1 | E5: 7 | F5: =H5+J5+L5 -> 55110 | G5: =3+3+4+5.5+3 -> 18.5 | H5: =3630+5200+5850+7530+4400 -> 26610 | I5: =1+1+1 -> 3 | J5: =11000+6000+11500 -> 28500 | K5: 0 | L5: 0 | N5: =11000 -> 11000 | O5: =1150+1555+925 -> 3630 | P5: =1700+1600+1900+6000 -> 11200 | Q5: =1900+800+1450+1700 -> 5850 | R5: =1700/2+1480+11500+2000+1300+1000+900 -> 19030 | S5: =1400+1400+1600 -> 4400 | T5: =SUM(N5:S5) -> 55110
A6: 融冠乐城店 | B6: 融冠乐城A店 | C6: 朱玉春 | D6: 1 | E6: 4 | F6: =SUM(H6+J6+L6) -> 68602 | G6: =1+5+1.5+3.5+3.5+3.5 -> 18 | H6: =1000+8150+2700+5550+4700+4950 -> 27050 | I6: =1.5+1+2+1 -> 5.5 | J6: =13500+6816+9000+6600+5636 -> 41552 | K6: 0 | L6: 0 | N6: =7000+13000/2+1000 -> 14500 | O6: =1400+1500/2+900+2000/2+6816+800/2+4200/2+1600 -> 14966 | P6: =1200/2+2100/2+2100/2 -> 2700 | Q6: =625+1300+4050/2+1750/2+9000+6600+1450/2 -> 21150 | R6: =1550+1000+1400+1500/2 -> 4700 | S6: =1450+2000/2+1600+900+5636 -> 10586 | T6: =SUM(M6:S6) -> 68602
B7: 融冠乐城B店 | C7: 聂荣欢 | D7: 1 | E7: 3 | F7: =H7+J7+L7 -> 25940 | G7: 0 | H7: 0 | I7: =1+1 -> 2 | J7: =8940+17000 -> 25940 | K7: 0 | L7: 0 | N7: 0 | O7: 0 | P7: 0 | Q7: =8940 -> 8940 | R7: 0 | S7: =17000 -> 17000 | T7: =SUM(N7:S7) -> 25940
B8: 融冠乐城C店 | C8: 周鼎 | D8: 1 | E8: 3 | F8: =H8+J8+L8 -> 25114.5 | G8: =1+1+1+2.5 -> 5.5 | H8: =1700+1325+2390+3699.5 -> 9114.5 | I8: =1 -> 1 | J8: =16000 -> 16000 | K8: 0 | L8: 0 | N8: =2400/2+1000/2 -> 1700 | O8: =1300/2+1350/2 -> 1325 | P8: =2180/2+2600/2 -> 2390 | Q8: 0 | R8: 0 | S8: =1999/2+16000+1100+1200/2+2000/2 -> 19699.5 | T8: =SUM(N8:S8) -> 25114.5
B9: 融冠乐城D店 | C9: 刘洋 | D9: 1 | E9: 2 | F9: =H9+J9+L9 -> 15439.5 | G9: =1+0.5+2+2 -> 5.5 | H9: =1700+650+3990+2599.5 -> 8939.5 | I9: =0.5 -> 0.5 | J9: =13000/2 -> 6500 | K9: 0 | L9: 0 | N9: =2400/2+1000/2+13000/2 -> 8200 | O9: =1300/2 -> 650 | P9: =2180/2+2600/2+1600 -> 3990 | Q9: 0 | R9: 0 | S9: =1999/2+1200/2+2000/2 -> 2599.5 | T9: =SUM(N9:S9) -> 15439.5
C10: 合计 | D10: =SUM(D3:D9) -> 7 | E10: =SUM(E3:E9) -> 29 | F10: =H10+J10+L10 -> 354003 | G10: =SUM(G3:G9) -> 72 | H10: 110299 | I10: 23 | J10: 243704 | K10: 0 | L10: 0 | N10: =SUM(N3:N9) -> 52650 | O10: 51916 | P10: 35840 | Q10: 75705 | R10: 54325 | S10: 83567 | T10: 354003

Sheet Sheet2
